[Event "Turkish Club Cup 2019"]
[Site "Konya"]
[Date "2019.07.17"]
[Round "2"]
[White "Sahin, Senol"]
[Black "Ozdover, Mustafa Berkay"]
[Result "0-1"]
[ECO "B11"]
[WhiteElo "1922"]
[BlackElo "2130"]
[Annotator "ChessBase"]
[PlyCount "84"]
[EventDate "2019.07.16"]
[EventType "team-tourn"]
[EventCountry "TUR"]
[SourceTitle "playchess.com"]
[Source "ChessBase"]
[SourceQuality "1"]
[TimeControl "5400+30"]

1. e4 {[%emt 0:00:30]} c6 {[%emt 0:02:30]} 2. Nc3 {[%emt 0:07:30]} d5 {[%emt 0:01:30]} 3. Nf3 {[%emt 0:00:00]} Bg4 {[%emt 0:08:30]} 4. h3 {[%emt 0:00:00]} Bxf3 {[%emt 0:01:30]} 5. Qxf3 {[%emt 0:00:00]} e6 {[%emt 0:03:30]} 6. d4 {[%emt 0:11:00]} dxe4 {[%emt 0:17:30]} 7. Nxe4 {[%emt 0:01:30]} Qxd4 {[%emt 0:02:30]} 8. Bd3 {[%emt 0:00:30]} Nd7 {[%emt 0:12:30]} 9. Be3 {[%emt 0:06:30]} Qb4+ {[%emt 0:03:30]} 10. Bd2 {[%emt 0:03:30]} Ne5 {[%emt 0:06:30]} 11. Qg3 {[%emt 0:06:30]} Nxd3+ {[%emt 0:00:30]} 12. cxd3 {[%emt 0:00:30]} Qe7 {[%emt 0:09:30]} 13. O-O {[%emt 0:00:30]} Nf6 {[%emt 0:01:30]} 14. Rfe1 {[%emt 0:02:30]} Nd5 {[%emt 0:02:30]} 15. b4 {[%emt 0:05:30]} Qc7 {[%emt 0:02:30]} 16. f4 {[%emt 0:01:30]} g6 {[%emt 0:02:41]} 17. Qf2 {[%emt 0:11:30]} Bg7 {[%emt 0:07:23]} 18. Rac1 {[%emt 0:01:30]} O-O {[%emt 0:00:13]} 19. Kh1 {[%emt 0:01:30]} Rad8 {[%emt 0:04:46]} 20. g4 {[%emt 0:01:30]} Nf6 {[%emt 0:01:16]} 21. g5 {[%emt 0:16:30]} Nh5 {[%emt 0:02:54]} 22. b5 {[%emt 0:07:38]} Rxd3 {[%emt 0:01:59]} 23. bxc6 {[%emt 0:00:17]} bxc6 {[%emt 0:01:36]} 24. Be3 {[%emt 0:04:31]} a5 {[%emt 0:01:16]} 25. Qc2 {[%emt 0:00:33]} Rfd8 {[%emt 0:00:43]} 26. Qxc6 {[%emt 0:01:59]} Qb8 {[%emt 0:00:29]} 27. Nc5 {[%emt 0:00:52]} R3d6 {[%emt 0:01:08]} 28. Qb7 {[%emt 0:00:23]} Rd5 {[%emt 0:00:17]} 29. Qxb8 {[%emt 0:01:00]} Rxb8 {[%emt 0:00:01]} 30. Rb1 {[%emt 0:00:57]} Rc8 {[%emt 0:00:06]} 31. Rec1 {[%emt 0:02:11]} Bd4 {[%emt 0:00:23]} 32. Bxd4 {[%emt 0:03:36]} Rxd4 {[%emt 0:00:02]} 33. Nb3 {[%emt 0:00:57]} Rxc1+ {[%emt 0:00:30]} 34. Rxc1 {[%emt 0:00:00]} Rxf4 {[%emt 0:00:00]} 35. Rc8+ {[%emt 0:00:43]} Kg7 {[%emt 0:00:00]} 36. Ra8 {[%emt 0:00:00]} a4 {[%emt 0:00:46]} 37. Nc5 {[%emt 0:00:00]} Rc4 {[%emt 0:00:11]} 38. Rc8 {[%emt 0:02:11]} Rc1+ {[%emt 0:03:08]} 39. Kg2 {[%emt 0:00:30]} Rc2+ {[%emt 0:00:00]} 40. Kf3 {[%emt 0:00:08]} Rxa2 {[%emt 0:00:12]} 41. Ne4 {[%emt 0:00:00]} Ra3+ {[%emt 0:00:58]} 42. Kg2 {[%emt 0:00:08]} Re3 {[%emt 0:00:00]} 0-1

[Event "Turkish Club Cup 2019"]
[Site "Konya"]
[Date "2019.07.17"]
[Round "2"]
[White "Demirbas, Emre"]
[Black "Senyuz, Mustafa Zorbey"]
[Result "0-1"]
[ECO "E60"]
[WhiteElo "1913"]
[BlackElo "1754"]
[Annotator "NA"]
[PlyCount "68"]
[EventDate "2019.07.16"]
[EventType "team-tourn"]
[EventCountry "TUR"]
[SourceTitle "playchess.com"]
[Source "ChessBase"]
[SourceQuality "1"]
[TimeControl "5400+30"]

1. Nf3 {[%emt 0:00:30]} Nf6 {[%emt 0:00:30]} 2. c4 {[%emt 0:00:30]} g6 {[%emt 0:00:30]} 3. b3 {[%emt 0:00:30]} Bg7 {[%emt 0:00:30]} 4. Bb2 {[%emt 0:00:30]} O-O {[%emt 0:00:30]} 5. g3 {[%emt 0:00:00]} d6 {[%emt 0:00:00]} 6. d4 {[%emt 0:00:00]} c6 {[%emt 0:00:00]} 7. Bg2 {[%emt 0:00:00]} Nbd7 {[%emt 0:00:30]} 8. O-O {[%emt 0:00:00]} Qc7 {[%emt 0:01:30]} 9. Nc3 {[%emt 0:00:00]} e5 {[%emt 0:00:00]} 10. e4 {[%emt 0:00:00]} Re8 {[%emt 0:04:00] E60: King's Indian: Unusual lines and Fianchetto Variation without Nc3} 11. Re1 {[%emt 0:00:00]} (11. h3 b6 12. d5 cxd5 13. cxd5 Ba6 14. Re1 Nc5 15. Bf1 Bxf1 16. Kxf1 Rec8 17. Kg2 a6 18. Qe2 {1-0 (57) Skoberne,J (2563)-Onischuk,V (2632) Batumi 2018}) 11... Nf8 {[%emt 0:00:30]} 12. h3 {[%emt 0:00:00]} a6 {[%emt 0:10:30]} 13. Qd2 {[%emt 0:04:30]} Bd7 {[%emt 0:01:30]} 14. Rad1 {[%emt 0:12:30]} Rad8 {[%emt 0:08:30]} 15. Qc1 {[%emt 0:10:30]} Bc8 $146 {[%emt 0:17:30]} ({Predecessor:} 15... h6 16. Ba3 Bc8 17. Re2 g5 18. Red2 exd4 19. Nxd4 {1-0 (29) Vlckova,K (1853)-Macura,E (2008) Kouty nad Desnou 2013}) 16. Qa1 {[%emt 0:04:30]} N6d7 {[%emt 0:05:30]} 17. b4 {[%emt 0:07:30]} exd4 {[%emt 0:03:30]} 18. Nxd4 {[%emt 0:00:30]} Ne5 {[%emt 0:01:30]} 19. Bf1 {[%emt 0:06:30]} Ne6 {[%emt 0:00:30]} 20. Kg2 {[%emt 0:10:30]} Qd7 $19 {[%emt 0:00:30]} 21. Nce2 {[%emt 0:08:30]} Nxd4 {[%emt 0:12:30]} 22. Nxd4 {[%emt 0:00:30]} Qxh3+ {[%emt 0:00:30]} 23. Kg1 {[%emt 0:00:30]} Qh5 {[%emt 0:00:00]} 24. f4 {[%emt 0:06:30]} c5 {[%emt 0:04:00]} 25. fxe5 {[%emt 0:02:30]} cxd4 {[%emt 0:00:30]} 26. Bxd4 {[%emt 0:05:30]} dxe5 {[%emt 0:03:30]} 27. Bb6 {[%emt 0:05:04]} Rxd1 {[%emt 0:01:30]} 28. Qxd1 {[%emt 0:00:03]} Qg5 {[%emt 0:01:30]} 29. Qf3 {[%emt 0:05:01]} Qd2 {[%emt 0:01:30]} 30. Rd1 {[%emt 0:06:27]} Qxb4 {[%emt 0:01:30]} 31. c5 {[%emt 0:00:00]} Be6 {[%emt 0:01:06]} 32. a3 {[%emt 0:00:30]} Qa4 {[%emt 0:01:04]} 33. Bc7 {[%emt 0:02:31]} h5 {[%emt 0:01:48]} 34. Qe3 {[%emt 0:01:06]} Qxd1 {[%emt 0:00:15]} 0-1

[Event "Turkish Club Cup 2019"]
[Site "Konya"]
[Date "2019.07.17"]
[Round "2"]
[White "Guder, Eyup Sabri"]
[Black "Dinler, Oral"]
[Result "1-0"]
[ECO "A80"]
[WhiteElo "1909"]
[BlackElo "1644"]
[Annotator "NA"]
[PlyCount "99"]
[EventDate "2019.07.16"]
[EventType "team-tourn"]
[EventCountry "TUR"]
[SourceTitle "playchess.com"]
[Source "ChessBase"]
[SourceQuality "1"]
[TimeControl "5400+30"]

1. d4 {[%emt 0:00:30]} f5 {[%emt 0:00:30]} 2. Bg5 {[%emt 0:00:30]} h6 {[%emt 0:01:30]} 3. Bh4 {[%emt 0:00:30]} g5 {[%emt 0:00:30]} 4. e3 {[%emt 0:00:00]} Nf6 {[%emt 0:02:30]} 5. Bg3 {[%emt 0:00:00]} Bg7 {[%emt 0:00:30]} 6. h4 {[%emt 0:00:30]} g4 {[%emt 0:05:30] A80: Dutch Defence: Unusual White second moves} 7. h5 {[%emt 0:01:30]} O-O {[%emt 0:06:30]} (7... d6 8. Ne2 Be6 9. Nf4 Bf7 10. Bb5+ c6 11. Bd3 Qd7 12. Nc3 Na6 13. a3 Nc7 14. Qe2 {1-0 (59) Predke,A (2604)-Potapov,P (2515) Khanty-Mansiysk 2018}) 8. Nc3 {[%emt 0:02:30]} d6 {[%emt 0:00:30]} 9. Nge2 {[%emt 0:00:30]} Be6 {[%emt 0:01:30]} 10. Nf4 {[%emt 0:09:30]} Bf7 {[%emt 0:01:30]} 11. Qd2 $146 {[%emt 0:07:30]} ({Predecessor:} 11. Bd3 e6 12. e4 Re8 13. exf5 exf5+ 14. Nce2 {1-0 (34) Antonsen,M (2475)-Haubro,M (2369) Gothenburg 2015}) 11... a6 {[%emt 0:04:30]} 12. O-O-O {[%emt 0:02:30]} b5 {[%emt 0:03:30]} 13. f3 {[%emt 0:01:30]} Nbd7 {[%emt 0:02:30]} 14. Bd3 {[%emt 0:06:30]} e6 {[%emt 0:04:30]} 15. e4 {[%emt 0:01:30]} e5 {[%emt 0:03:30]} 16. dxe5 {[%emt 0:02:30]} dxe5 {[%emt 0:03:30]} 17. Ng6 {[%emt 0:02:30]} Bxg6 {[%emt 0:01:30]} ({Avoid the trap} 17... Nxh5 $2 18. Bh4 $18) 18. hxg6 {[%emt 0:00:30]} f4 {[%emt 0:00:30]} 19. Bh4 {[%emt 0:00:30]} g3 $16 {[%emt 0:00:30]} 20. Nd5 {[%emt 0:01:30]} c6 {[%emt 0:03:30]} 21. Nxf6+ {[%emt 0:02:30]} Nxf6 {[%emt 0:00:30]} 22. Be2 {[%emt 0:01:30]} Qe8 {[%emt 0:05:30]} 23. Qd6 {[%emt 0:04:30]} Ra7 {[%emt 0:07:30]} 24. Qc5 {[%emt 0:06:30]} Rd7 {[%emt 0:06:30]} 25. Rxd7 {[%emt 0:04:30]} Qxd7 {[%emt 0:03:30]} 26. Rd1 {[%emt 0:00:30]} Qe6 {[%emt 0:05:30]} 27. b3 {[%emt 0:05:30]} Nd7 {[%emt 0:04:30]} 28. Qe7 {[%emt 0:02:30]} Qxg6 {[%emt 0:12:57]} 29. Rxd7 {[%emt 0:03:30]} Re8 {[%emt 0:02:54]} 30. Qxe8+ {[%emt 0:01:30]} Qxe8 {[%emt 0:00:42]} 31. Rd8 {[%emt 0:00:30]} Kf7 {[%emt 0:00:54]} 32. Rxe8 {[%emt 0:00:30]} Kxe8 {[%emt 0:00:00]} 33. Kd2 {[%emt 0:01:30]} Kd7 {[%emt 0:00:59]} 34. c4 {[%emt 0:00:30]} b4 {[%emt 0:01:12]} 35. c5 {[%emt 0:01:30]} a5 {[%emt 0:00:43]} 36. Bc4 {[%emt 0:04:30]} Bh8 {[%emt 0:01:24]} 37. Bf7 {[%emt 0:00:30]} Bg7 {[%emt 0:01:37]} 38. Kc2 {[%emt 0:02:30]} Bh8 {[%emt 0:01:51]} 39. Kb2 {[%emt 0:00:30]} Bg7 {[%emt 0:00:20]} 40. a3 {[%emt 0:02:01]} bxa3+ {[%emt 0:01:18]} 41. Kxa3 {[%emt 0:00:30]} Bf8 {[%emt 0:00:00]} 42. b4 {[%emt 0:00:00]} axb4+ {[%emt 0:01:04]} 43. Kxb4 {[%emt 0:00:29]} Bg7 {[%emt 0:00:27]} 44. Ka5 {[%emt 0:00:30]} Kc7 {[%emt 0:00:16]} 45. Ka6 {[%emt 0:02:06]} Bh8 {[%emt 0:00:41]} 46. Be6 {[%emt 0:00:37]} Bg7 {[%emt 0:00:32]} 47. Be7 {[%emt 0:00:07]} Bh8 {[%emt 0:00:57]} 48. Bd6+ {[%emt 0:00:09]} Kd8 {[%emt 0:00:21]} 49. Kb7 {[%emt 0:00:06]} Bg7 {[%emt 0:00:21]} 50. Kxc6 {[%emt 0:00:11]} 1-0

[Event "Turkish Club Cup 2019"]
[Site "Konya"]
[Date "2019.07.17"]
[Round "2"]
[White "Taskiran, Recep"]
[Black "Mecit, Emre"]
[Result "0-1"]
[ECO "E65"]
[WhiteElo "1898"]
[BlackElo "2065"]
[Annotator "NA"]
[PlyCount "86"]
[EventDate "2019.07.16"]
[EventType "team-tourn"]
[EventCountry "TUR"]
[SourceTitle "playchess.com"]
[Source "ChessBase"]
[SourceQuality "1"]
[TimeControl "5400+30"]

1. Nf3 {[%emt 0:00:30]} Nf6 {[%emt 0:00:30]} 2. c4 {[%emt 0:00:30]} g6 {[%emt 0:00:00]} 3. g3 {[%emt 0:00:00]} Bg7 {[%emt 0:00:00]} 4. Bg2 {[%emt 0:00:00]} O-O {[%emt 0:00:30]} 5. O-O {[%emt 0:00:00]} c5 {[%emt 0:00:00]} 6. Nc3 {[%emt 0:00:00]} Nc6 {[%emt 0:00:00]} 7. e3 {[%emt 0:02:30]} a6 {[%emt 0:01:30]} 8. d4 {[%emt 0:01:30]} d6 {[%emt 0:00:30]} 9. h3 {[%emt 0:19:30]} Rb8 {[%emt 0:04:30]} 10. Qe2 {[%emt 0:06:30] E65: King's Indian: Fianchetto: 6...c5 7 0-0 without d5 by White} b5 {[%emt 0:13:30]} (10... Nd7 11. Rd1 b5 12. dxc5 Nxc5 13. cxb5 axb5 14. Nd4 Nxd4 15. exd4 Ne6 16. Be3 b4 17. Nd5 Nc7 18. Nxc7 Qxc7 {1-0 (42) Obona,J (2166)-Certek,P (2267) Tatranske Zruby 2014}) 11. Rd1 {[%emt 0:06:30]} Qb6 {[%emt 0:03:30]} 12. Nd5 {[%emt 0:03:30]} Nxd5 {[%emt 0:04:30]} 13. cxd5 {[%emt 0:00:30]} Na5 {[%emt 0:00:30]} 14. dxc5 $146 {[%emt 0:02:30]} ({Predecessor:} 14. b3 Bd7 15. Bb2 c4 16. b4 Nb7 17. Bc3 a5 {1-0 (44) Karner,H-Reviakin,V Kalinkovici 1967}) 14... dxc5 {[%emt 0:00:30]} 15. e4 {[%emt 0:00:30]} Bb7 {[%emt 0:05:30]} 16. Bf4 {[%emt 0:02:30]} Rbc8 {[%emt 0:02:30]} 17. Be5 {[%emt 0:02:30]} (17. Rac1 $16) 17... Rfd8 {[%emt 0:02:30]} 18. h4 {[%emt 0:03:30]} f6 {[%emt 0:11:30]} 19. Bf4 {[%emt 0:02:30]} e5 {[%emt 0:01:30]} 20. Bd2 {[%emt 0:10:30]} Nc4 {[%emt 0:08:30]} 21. Be1 {[%emt 0:02:30]} Nd6 {[%emt 0:01:30]} 22. a4 {[%emt 0:07:30]} b4 {[%emt 0:01:30]} 23. a5 {[%emt 0:00:30]} Qb5 $11 {[%emt 0:00:30]} 24. Qe3 {[%emt 0:04:30]} Bf8 {[%emt 0:11:30]} 25. b3 {[%emt 0:01:30]} Qe8 {[%emt 0:01:30]} 26. Nd2 {[%emt 0:00:30]} Rc7 {[%emt 0:02:30]} 27. Bf1 {[%emt 0:00:36]} f5 {[%emt 0:01:30]} 28. Bc4 {[%emt 0:06:39]} Kh8 {[%emt 0:03:14]} 29. Qe2 {[%emt 0:02:04]} Ra8 {[%emt 0:00:32]} 30. exf5 {[%emt 0:01:17]} Nxf5 {[%emt 0:00:50]} 31. Nf3 {[%emt 0:03:32]} Bg7 {[%emt 0:04:00]} 32. Ng5 {[%emt 0:02:19]} Nd4 {[%emt 0:01:41]} 33. Qf1 {[%emt 0:01:58]} Rd8 {[%emt 0:02:51]} 34. Ra2 {[%emt 0:02:55]} h6 {[%emt 0:01:20]} 35. Ne4 {[%emt 0:00:02]} Rxd5 {[%emt 0:00:07]} 36. Kh2 {[%emt 0:03:07]} Nf3+ {[%emt 0:00:37]} 37. Kg2 {[%emt 0:00:07]} Rxd1 {[%emt 0:00:22]} 38. Kxf3 {[%emt 0:00:02]} Rd4 {[%emt 0:01:25]} 39. Bd3 {[%emt 0:00:06]} Qd7 {[%emt 0:00:20]} 40. Ke3 {[%emt 0:01:37]} Rxe4+ {[%emt 0:01:20]} 41. Bxe4 {[%emt 0:00:30]} Qd4+ {[%emt 0:00:30]} 42. Ke2 {[%emt 0:00:00]} Qxe4+ {[%emt 0:00:00]} 43. Kd1 {[%emt 0:00:00]} Qb1+ {[%emt 0:00:00]} 0-1

[Event "Turkish Club Cup 2019"]
[Site "Konya"]
[Date "2019.07.17"]
[Round "2"]
[White "Oluc, Hakan"]
[Black "Oz, Ozan"]
[Result "1-0"]
[ECO "A11"]
[WhiteElo "1881"]
[BlackElo "1923"]
[Annotator "NA"]
[PlyCount "97"]
[EventDate "2019.07.16"]
[EventType "team-tourn"]
[EventCountry "TUR"]
[SourceTitle "playchess.com"]
[Source "ChessBase"]
[SourceQuality "1"]
[TimeControl "5400+30"]

1. c4 {[%emt 0:00:30]} c6 {[%emt 0:04:30]} 2. g3 {[%emt 0:00:00]} d5 {[%emt 0:00:00]} 3. Nf3 {[%emt 0:00:00]} Nf6 {[%emt 0:01:00]} 4. Bg2 {[%emt 0:00:30]} Bf5 {[%emt 0:01:30]} 5. cxd5 {[%emt 0:00:30]} cxd5 {[%emt 0:00:30]} 6. Qb3 {[%emt 0:00:00]} Nc6 {[%emt 0:10:30]} 7. Qxb7 {[%emt 0:00:00]} Bd7 {[%emt 0:05:30]} 8. Qb3 {[%emt 0:00:30]} e5 {[%emt 0:00:30]} 9. O-O {[%emt 0:00:30]} Rb8 {[%emt 0:03:30]} 10. Qd1 {[%emt 0:00:30]} e4 {[%emt 0:05:30]} 11. Ne1 {[%emt 0:00:30]} Bc5 {[%emt 0:02:30]} 12. d3 {[%emt 0:00:30]} Qe7 {[%emt 0:07:30]} 13. dxe4 {[%emt 0:08:30]} dxe4 {[%emt 0:02:30]} 14. Nc3 {[%emt 0:00:30]} e3 {[%emt 0:02:30]} 15. fxe3 {[%emt 0:06:30]} O-O {[%emt 0:02:30]} 16. Rxf6 {[%emt 0:09:30]} gxf6 {[%emt 0:03:30]} 17. Nd5 $18 {[%emt 0:01:30]} Qd6 {[%emt 0:19:30]} 18. Nd3 {[%emt 0:00:30]} Bb6 {[%emt 0:01:30]} 19. Bd2 {[%emt 0:18:30]} Rfe8 {[%emt 0:04:30]} 20. Qf1 {[%emt 0:13:30]} Bd8 {[%emt 0:08:53]} 21. Bc3 {[%emt 0:02:30]} Rb5 {[%emt 0:01:02]} 22. N3f4 {[%emt 0:02:30]} Ne5 {[%emt 0:05:27]} 23. Rd1 {[%emt 0:01:30]} Bc6 {[%emt 0:03:38]} 24. a4 {[%emt 0:09:30]} Rb8 {[%emt 0:00:30]} 25. Nh5 {[%emt 0:00:30]} Bxd5 {[%emt 0:00:30]} 26. Bxd5 {[%emt 0:00:30]} Qe7 {[%emt 0:00:30]} 27. Qf4 {[%emt 0:00:30]} Rb6 {[%emt 0:02:09]} 28. a5 {[%emt 0:15:36]} Ra6 {[%emt 0:00:15]} 29. e4 {[%emt 0:03:23]} Ng6 {[%emt 0:01:31]} 30. Qf5 {[%emt 0:02:02]} Bxa5 {[%emt 0:00:33]} 31. Nxf6+ {[%emt 0:01:23]} Rxf6 {[%emt 0:00:57]} 32. Bxf6 {[%emt 0:00:10]} Qc7 {[%emt 0:00:04]} 33. Kh1 {[%emt 0:02:29]} Bb6 {[%emt 0:00:24]} 34. Bc3 {[%emt 0:00:41]} Qe7 {[%emt 0:00:33]} 35. Rf1 {[%emt 0:00:13]} Rf8 {[%emt 0:00:22]} 36. Qh5 {[%emt 0:00:36]} Bc7 {[%emt 0:00:31]} 37. Bf6 {[%emt 0:00:10]} Qd6 {[%emt 0:00:40]} 38. Qh6 {[%emt 0:00:15]} Qxf6 {[%emt 0:00:38]} 39. Rxf6 {[%emt 0:00:35]} Be5 {[%emt 0:00:00]} 40. Rxg6+ {[%emt 0:01:05]} hxg6 {[%emt 0:00:22]} 41. Qxg6+ {[%emt 0:00:30]} Bg7 {[%emt 0:00:00]} 42. h4 {[%emt 0:00:00]} a5 {[%emt 0:00:22]} 43. h5 {[%emt 0:00:00]} Kh8 {[%emt 0:00:01]} 44. Bxf7 {[%emt 0:00:00]} a4 {[%emt 0:00:14]} 45. e5 {[%emt 0:01:00]} a3 {[%emt 0:00:12]} 46. bxa3 {[%emt 0:00:26]} Rd8 {[%emt 0:00:24]} 47. Bb3 {[%emt 0:01:24]} Rc8 {[%emt 0:00:17]} 48. Bc2 {[%emt 0:00:27]} Kg8 {[%emt 0:00:30]} 49. Qe6+ {[%emt 0:00:10]} 1-0

[Event "Turkish Club Cup 2019"]
[Site "Konya"]
[Date "2019.07.17"]
[Round "2"]
[White "Gulenc, Ahmet Fazil"]
[Black "Guner, Bulent"]
[Result "1/2-1/2"]
[ECO "A57"]
[WhiteElo "1880"]
[BlackElo "1979"]
[Annotator "NA"]
[PlyCount "143"]
[EventDate "2019.07.16"]
[EventType "team-tourn"]
[EventCountry "TUR"]
[SourceTitle "playchess.com"]
[Source "ChessBase"]
[SourceQuality "1"]
[TimeControl "5400+30"]

1. d4 {[%emt 0:00:30]} Nf6 {[%emt 0:00:30]} 2. c4 {[%emt 0:00:00]} c5 {[%emt 0:01:30]} 3. d5 {[%emt 0:00:00]} b5 {[%emt 0:00:30]} 4. cxb5 {[%emt 0:00:00]} a6 {[%emt 0:00:00]} 5. e3 {[%emt 0:00:00]} axb5 {[%emt 0:01:00]} 6. Bxb5 {[%emt 0:01:30]} Qa5+ {[%emt 0:00:00]} 7. Nc3 {[%emt 0:00:30]} Bb7 {[%emt 0:00:00]} 8. Bd2 {[%emt 0:02:30]} Qb6 {[%emt 0:00:30]} 9. Bc4 {[%emt 0:00:00]} e6 {[%emt 0:01:30]} 10. dxe6 {[%emt 0:07:00] A57: Benko/Volga Gambit} (10. e4 Nxe4 11. dxe6 dxe6 12. Bb5+ Bc6 13. Bxc6+ Qxc6 14. Nf3 Nxd2 15. Qxd2 Be7 16. O-O O-O 17. Rad1 Bf6 18. Rfe1 Qb6 {½-½ (49) Aronian,L (2786)-Bareev,E (2634) Moscow 2009}) 10... fxe6 $146 {[%emt 0:04:30]} ({Predecessor:} 10... Bxg2 11. exf7+ Kd8 12. f3 Bxh1 13. Kf2 Qd6 14. e4 Qxh2+ 15. Ke3 Nc6 16. Nd5 Nxd5+ 17. Bxd5 c4 18. Bxc4 {0-1 (28) Coursaget,N (2327)-Volodin,A (2422) Agneaux 2010}) 11. Nf3 {[%emt 0:00:30]} Be7 {[%emt 0:01:30]} 12. O-O {[%emt 0:00:30]} O-O {[%emt 0:00:30]} 13. Be2 {[%emt 0:04:30]} Nc6 {[%emt 0:06:30]} 14. b3 {[%emt 0:05:30]} Rfb8 {[%emt 0:09:30]} 15. Na4 {[%emt 0:05:30]} Qa7 {[%emt 0:04:30]} 16. Bc3 {[%emt 0:01:30]} d5 {[%emt 0:08:30]} 17. Rc1 {[%emt 0:00:30]} Ne4 {[%emt 0:14:30]} 18. Ba1 {[%emt 0:04:30]} Ba6 {[%emt 0:02:30]} 19. Bxa6 {[%emt 0:01:30]} Qxa6 {[%emt 0:00:30]} 20. Nd2 {[%emt 0:00:30]} Nxd2 {[%emt 0:02:30]} 21. Qxd2 {[%emt 0:00:30]} c4 {[%emt 0:01:30]} 22. bxc4 {[%emt 0:00:30]} d4 {[%emt 0:05:30]} 23. Nb2 {[%emt 0:00:30]} Qxa2 {[%emt 0:14:18]} 24. exd4 {[%emt 0:04:30]} Bf6 {[%emt 0:00:34]} 25. d5 $17 {[%emt 0:00:30]} (25. Qe3 $11 Nxd4 26. Na4) 25... Bxb2 {[%emt 0:01:10]} 26. Bxb2 {[%emt 0:00:30]} Rxb2 {[%emt 0:02:25]} 27. Qe3 {[%emt 0:01:30]} Nd8 {[%emt 0:09:42]} 28. Rfe1 {[%emt 0:01:30]} Rb7 {[%emt 0:02:44]} 29. dxe6 {[%emt 0:01:30]} Re7 {[%emt 0:00:26]} 30. Qc5 {[%emt 0:00:30]} Qa7 {[%emt 0:00:28]} 31. Qd5 {[%emt 0:00:30]} Rc8 {[%emt 0:01:09]} 32. c5 {[%emt 0:00:30]} Nc6 {[%emt 0:01:11]} 33. Rcd1 {[%emt 0:00:30]} Qc7 {[%emt 0:01:05]} 34. Qd6 {[%emt 0:00:30]} h6 {[%emt 0:00:09]} 35. h3 {[%emt 0:00:30]} Nb4 {[%emt 0:00:48]} 36. Re4 {[%emt 0:02:30]} Nc6 {[%emt 0:00:55]} 37. Rd5 {[%emt 0:01:30]} Kh7 {[%emt 0:01:13]} 38. Rf5 {[%emt 0:01:30]} Rd8 {[%emt 0:00:56]} 39. Rd5 {[%emt 0:01:30]} Rxd6 {[%emt 0:01:20]} 40. cxd6 {[%emt 0:00:30]} Qb7 {[%emt 0:00:52]} 41. dxe7 {[%emt 0:00:00]} Nxe7 {[%emt 0:00:34]} 42. Rdd4 {[%emt 0:00:00]} Qc7 {[%emt 0:00:08]} 43. Re1 {[%emt 0:00:30]} Qc3 {[%emt 0:00:40]} 44. Rdd1 {[%emt 0:00:00]} Kg6 {[%emt 0:00:24]} 45. Re3 {[%emt 0:00:00]} Qc2 {[%emt 0:00:12]} 46. Rd7 {[%emt 0:00:00]} Qc5 {[%emt 0:00:06]} 47. Rf3 {[%emt 0:01:00]} Nf5 {[%emt 0:00:21]} 48. g4 {[%emt 0:00:30]} Nd4 {[%emt 0:00:15]} 49. Re3 {[%emt 0:00:30]} Qc1+ {[%emt 0:01:23]} 50. Kh2 {[%emt 0:00:00]} Qf1 {[%emt 0:00:32]} 51. Rf7 {[%emt 0:00:00]} Nxe6 {[%emt 0:00:35]} 52. Rf5 {[%emt 0:00:30]} Nd4 {[%emt 0:00:00]} 53. Rf4 {[%emt 0:00:30]} Ne2 {[%emt 0:00:30]} 54. Rxe2 {[%emt 0:00:30]} Qxe2 {[%emt 0:00:30]} 55. Kg2 {[%emt 0:00:30]} Qe5 {[%emt 0:00:30]} 56. Rf5 {[%emt 0:00:30]} Qe4+ {[%emt 0:00:30]} 57. Kg3 {[%emt 0:00:30]} Qh1 {[%emt 0:00:30]} 58. h4 {[%emt 0:00:30]} Qg1+ {[%emt 0:00:30]} 59. Kf3 {[%emt 0:00:30]} Qd1+ {[%emt 0:00:30]} 60. Kg3 {[%emt 0:00:30]} Qd6+ {[%emt 0:00:30]} 61. Kh3 {[%emt 0:00:30]} Kh7 {[%emt 0:00:30]} 62. h5 {[%emt 0:00:30]} g6 {[%emt 0:00:30]} 63. hxg6+ {[%emt 0:00:30]} Kxg6 {[%emt 0:00:30]} 64. f3 {[%emt 0:00:30]} Qd2 {[%emt 0:00:30]} 65. Kg3 {[%emt 0:00:30]} Qe1+ {[%emt 0:00:30]} 66. Kg2 {[%emt 0:00:30]} Qe2+ {[%emt 0:00:30]} 67. Kg3 {[%emt 0:00:30]} Qf1 {[%emt 0:00:30]} 68. Rh5 {[%emt 0:00:30]} Qg1+ {[%emt 0:00:30]} 69. Kf4 {[%emt 0:00:30]} Qf2 {[%emt 0:00:30]} 70. Rf5 {[%emt 0:00:30]} Qh2+ {[%emt 0:00:30]} 71. Ke3 {[%emt 0:00:30]} Qg3 {[%emt 0:00:30]} 72. Ke2 {[%emt 0:00:00]} 1/2-1/2